DepartmentFamily,Entity,Date,Expense Type,Expense Area,Supplier,Payment Number,Invoice Distribution Amount,Invoice Description,Supplier Post Code,Transaction Type
FOOD STANDARDS AGENCY - Westminster,FOOD STANDARDS AGENCY - Westminster,2021-05-21,Redacted under S43 FOI Act,OPERATIONAL DELIVERY,Redacted under S43 FOI Act,1011716040,136000,Redacted under S43 FOI Act,Redacted under S43 FOI Act,Admin
FOOD STANDARDS AGENCY - Westminster,FOOD STANDARDS AGENCY - Westminster,2021-05-21,Redacted under S43 FOI Act,OPERATIONAL DELIVERY,Redacted under S43 FOI Act,1011716040,27200,Redacted under S43 FOI Act,Redacted under S43 FOI Act,Admin
FOOD STANDARDS AGENCY - Westminster,FOOD STANDARDS AGENCY - Westminster,2021-05-28,CL - TRADE PAYABLES - GRNI,BALANCE SHEET,ALEXANDER MANN SOLUTIONS LTD-2WM,1011716077,205711.24,SOP1-787105-901256-174097-TEMPORARY STAFF,EC2N 3AQ,Admin
FOOD STANDARDS AGENCY - Westminster,FOOD STANDARDS AGENCY - Westminster,2021-05-28,CL - TRADE PAYABLES - GRNI,BALANCE SHEET,ALEXANDER MANN SOLUTIONS LTD-2WM,1011716077,41142.25,Temporary Staff,EC2N 3AQ,Admin
FOOD STANDARDS AGENCY - Westminster,FOOD STANDARDS AGENCY - Westminster,2021-05-05,Redacted under S43 FOI Act,OPERATIONAL DELIVERY,Redacted under S43 FOI Act,1011715900,27060.4,Redacted under S43 FOI Act,Redacted under S43 FOI Act,Admin
FOOD STANDARDS AGENCY - Westminster,FOOD STANDARDS AGENCY - Westminster,2021-05-05,Redacted under S43 FOI Act,OPERATIONAL DELIVERY,Redacted under S43 FOI Act,1011715900,135302,Redacted under S43 FOI Act,Redacted under S43 FOI Act,Admin
FOOD STANDARDS AGENCY - Westminster,FOOD STANDARDS AGENCY - Westminster,2021-05-20,EXP - PURCHASE OF GOODS/SERVICES - ACCOMM & BLDNG MGMT - SHARED SITE RECHARGE,SECURITY & ESTATES,MINISTRY OF JUSTICE,2011700051,151473.75,Clive House CIVIL ESTATE OCCUPANCYShort Leasehold Property and Maintenance   bulk PO,NP209BB,Admin
FOOD STANDARDS AGENCY - Westminster,FOOD STANDARDS AGENCY - Westminster,2021-05-25,EXP - PURCHASE OF GOODS/SERVICES - OTHER - PROGRAMME EXPENDITURE,RISK ASSESSMENT - RESEARCH AND DEVELOPMENT,UNIVERSITY OF MANCHESTER,1011716052,100000,"The Adult Food Allergy Research Project will establish the true prevalence of adult food allergy in the UK, which has not been previously definied.",M13 9PL,Admin
FOOD STANDARDS AGENCY - Westminster,FOOD STANDARDS AGENCY - Westminster,2021-05-24,EXP - PURCHASE OF GOODS/SERVICES - OTHER - PROGRAMME EXPENDITURE,Surveillance,COGNIZANT WORLDWIDE LTD,1011716046,25100,Data Science Extended Team - Apr 2021,W2 6BD,Admin
FOOD STANDARDS AGENCY - Westminster,FOOD STANDARDS AGENCY - Westminster,2021-05-24,EXP - PURCHASE OF GOODS/SERVICES - OTHER - PROGRAMME EXPENDITURE,Surveillance,COGNIZANT WORLDWIDE LTD,1011716046,275,Data Science Extended Team - May 2021,W2 6BD,Admin
FOOD STANDARDS AGENCY - Westminster,FOOD STANDARDS AGENCY - Westminster,2021-05-24,EXP - PURCHASE OF GOODS/SERVICES - OTHER - PROGRAMME EXPENDITURE,Surveillance,COGNIZANT WORLDWIDE LTD,1011716046,5075,UK VAT - UK VAT,W2 6BD,Admin
FOOD STANDARDS AGENCY - Westminster,FOOD STANDARDS AGENCY - Westminster,2021-05-24,EXP - PURCHASE OF GOODS/SERVICES - OTHER - PROGRAMME EXPENDITURE,Surveillance,COGNIZANT WORLDWIDE LTD,1011716046,9178.5,Business Analyst - Apr 2021,W2 6BD,Admin
FOOD STANDARDS AGENCY - Westminster,FOOD STANDARDS AGENCY - Westminster,2021-05-24,EXP - PURCHASE OF GOODS/SERVICES - OTHER - PROGRAMME EXPENDITURE,Surveillance,COGNIZANT WORLDWIDE LTD,1011716046,64400,Data Science Core Team - Apr 2021,W2 6BD,Admin
FOOD STANDARDS AGENCY - Westminster,FOOD STANDARDS AGENCY - Westminster,2021-05-24,EXP - PURCHASE OF GOODS/SERVICES - OTHER - PROGRAMME EXPENDITURE,Surveillance,COGNIZANT WORLDWIDE LTD,1011716046,14715.7,UK VAT - UK VAT,W2 6BD,Admin
FOOD STANDARDS AGENCY - Westminster,FOOD STANDARDS AGENCY - Westminster,2021-05-27,EXP - PURCHASE OF GOODS/SERVICES - OTHER - PROGRAMME EXPENDITURE,Surveillance,DUN & BRADSTREET LTD,1011716071,55000,FS430657 Supply of UK Food Industry Data set - additional line,SL7 1AJ,Admin
FOOD STANDARDS AGENCY - Westminster,FOOD STANDARDS AGENCY - Westminster,2021-05-17,"EXP - PURCHASE OF GOODS/SERVICES - TRICHINELLA TESTING, CARRIAGE & CONSUMABLES",OPERATIONAL DELIVERY,TULIP,1011716000,11050.8,Tulip - Dalehead - Delivery of Official Controls - Trichinella testing,CV34 6DA,Admin
FOOD STANDARDS AGENCY - Westminster,FOOD STANDARDS AGENCY - Westminster,2021-05-17,"EXP - PURCHASE OF GOODS/SERVICES - TRICHINELLA TESTING, CARRIAGE & CONSUMABLES",OPERATIONAL DELIVERY,TULIP,1011716000,13049.4,Tulip - Dalehead - Delivery of Official Controls - Trichinella testing,CV34 6DA,Admin
FOOD STANDARDS AGENCY - Westminster,FOOD STANDARDS AGENCY - Westminster,2021-05-17,"EXP - PURCHASE OF GOODS/SERVICES - TRICHINELLA TESTING, CARRIAGE & CONSUMABLES",OPERATIONAL DELIVERY,TULIP,1011716000,13258.8,Tulip - Dalehead - Delivery of Official Controls - Trichinella testing,CV34 6DA,Admin
FOOD STANDARDS AGENCY - Westminster,FOOD STANDARDS AGENCY - Westminster,2021-05-17,"EXP - PURCHASE OF GOODS/SERVICES - TRICHINELLA TESTING, CARRIAGE & CONSUMABLES",OPERATIONAL DELIVERY,TULIP,1011716000,16271.4,Tulip - Dalehead - Delivery of Official Controls - Trichinella testing,CV34 6DA,Admin
FOOD STANDARDS AGENCY - Westminster,FOOD STANDARDS AGENCY - Westminster,2021-05-20,EXP - PURCHASE OF GOODS/SERV - SUPPORT - IT SUPPORT SERVICES,IT SERVICE DELIVERY,LITTLE FISH UK LTD,1011716028,3122,IT25 Major Incident Management (Apr 21-Aug 21),NG1 1LS,Admin
FOOD STANDARDS AGENCY - Westminster,FOOD STANDARDS AGENCY - Westminster,2021-05-20,EXP - PURCHASE OF GOODS/SERV - SUPPORT - IT SUPPORT SERVICES,IT SERVICE DELIVERY,LITTLE FISH UK LTD,1011716028,28264,IT25 Helpdesk Servicedesk (Apr 21-Aug 21),NG1 1LS,Admin
FOOD STANDARDS AGENCY - Westminster,FOOD STANDARDS AGENCY - Westminster,2021-05-20,EXP - PURCHASE OF GOODS/SERVICES - TELECOMS - TELEPHONE,IT SERVICE DELIVERY,LITTLE FISH UK LTD,1011716028,14209,IT1 Networks Design and Delivery (LAN) (Apr 21-Jul 21),NG1 1LS,Admin
FOOD STANDARDS AGENCY - Westminster,FOOD STANDARDS AGENCY - Westminster,2021-05-04,EXP - PURCHASE OF GOODS/SERVICES - OTHER ICT COSTS - COMPUTER HARDWARE,IT SERVICE DELIVERY,COREAZURE LTD,1011715891,36185,IT24 Datacentre and Hosting,EC1N 8TS,Admin
FOOD STANDARDS AGENCY - Westminster,FOOD STANDARDS AGENCY - Westminster,2021-05-04,EXP - PURCHASE OF GOODS/SERVICES - OTHER ICT COSTS - COMPUTER HARDWARE,IT SERVICE DELIVERY,COREAZURE LTD,1011715891,7237,UK VAT - UK VAT,EC1N 8TS,Admin
FOOD STANDARDS AGENCY - Westminster,FOOD STANDARDS AGENCY - Westminster,2021-05-13,EXP - PURCHASE OF GOODS/SERVICES - ICT OUTSOURCING & MAINT/SUPPORT,SECURITY & ESTATES,OCCUPEYE LTD,1011715978,7158,Birmingham Support (36 months,BB1 3NY,Admin
FOOD STANDARDS AGENCY - Westminster,FOOD STANDARDS AGENCY - Westminster,2021-05-13,EXP - PURCHASE OF GOODS/SERVICES - ICT OUTSOURCING & MAINT/SUPPORT,SECURITY & ESTATES,OCCUPEYE LTD,1011715978,10314,York Support (36 months),BB1 3NY,Admin
FOOD STANDARDS AGENCY - Westminster,FOOD STANDARDS AGENCY - Westminster,2021-05-13,EXP - AMORTISATION - INTANGIBLE ASSETS,SECURITY & ESTATES,OCCUPEYE LTD,1011715978,18090,York Hardware & Installation,BB1 3NY,Capital
FOOD STANDARDS AGENCY - Westminster,FOOD STANDARDS AGENCY - Westminster,2021-05-26,EXP - PURCHASE OF GOODS/SERVICES - OTHER - PROGRAMME EXPENDITURE,DIGITAL,CABINET OFFICE,2011700053,1852.14,FS103002: GOV.UK Notify Bulk PO,SW1A 2AS,Admin
FOOD STANDARDS AGENCY - Westminster,FOOD STANDARDS AGENCY - Westminster,2021-05-26,EXP - PURCHASE OF GOODS/SERVICES - OTHER FACILTIES COSTS - SECURITY,"DATA, INFORMATION, GOVERNANCE AND SECURITY",CABINET OFFICE,2011700053,19504,Rosa Annual Service Charges,SW1A 2AS,Admin
FOOD STANDARDS AGENCY - Westminster,FOOD STANDARDS AGENCY - Westminster,2021-05-26,EXP - PURCHASE OF GOODS/SERVICES - OTHER FACILTIES COSTS - SECURITY,"DATA, INFORMATION, GOVERNANCE AND SECURITY",CABINET OFFICE,2011700053,3900.8,UK VAT - UK VAT,SW1A 2AS,Admin
FOOD STANDARDS AGENCY - Westminster,FOOD STANDARDS AGENCY - Westminster,2021-05-26,EXP - PURCHASE OF GOODS/SERVICES - PERSONNEL RELATED - RECRUITMENT ADVERTISING,PEOPLE & ORGANISATIONAL CHANGE,CABINET OFFICE,2011700053,14200.2,Civil Service Jobs 2021/22 fees for: Food Standards Agency,SW1A 2AS,Admin
FOOD STANDARDS AGENCY - Westminster,FOOD STANDARDS AGENCY - Westminster,2021-05-26,EXP - PURCHASE OF GOODS/SERVICES - PERSONNEL RELATED - RECRUITMENT ADVERTISING,PEOPLE & ORGANISATIONAL CHANGE,CABINET OFFICE,2011700053,2840.04,UK VAT - UK VAT,SW1A 2AS,Admin
FOOD STANDARDS AGENCY - Westminster,FOOD STANDARDS AGENCY - Westminster,2021-05-17,EXP - PURCHASE OF GOODS/SERVICES - ICT OUTSOURCING & MAINT/SUPPORT,FINANCE,SHARED SERVICES CONNECTED LTD,1011716007,8.37,Multi client change requests,HP2 7AH,Admin
FOOD STANDARDS AGENCY - Westminster,FOOD STANDARDS AGENCY - Westminster,2021-05-17,EXP - PURCHASE OF GOODS/SERVICES - ICT OUTSOURCING & MAINT/SUPPORT,FINANCE,SHARED SERVICES CONNECTED LTD,1011716007,11.7,Multi client change requests,HP2 7AH,Admin
FOOD STANDARDS AGENCY - Westminster,FOOD STANDARDS AGENCY - Westminster,2021-05-17,EXP - PURCHASE OF GOODS/SERV - SUPPORT - IT SUPPORT SERVICES,FINANCE,SHARED SERVICES CONNECTED LTD,1011716007,-8962.97,SSCL Core charge management services 2020-21,HP2 7AH,Admin
FOOD STANDARDS AGENCY - Westminster,FOOD STANDARDS AGENCY - Westminster,2021-05-17,EXP - PURCHASE OF GOODS/SERV - SUPPORT - IT SUPPORT SERVICES,FINANCE,SHARED SERVICES CONNECTED LTD,1011716007,-6669.47,SSCL Core charge management services 2020-21,HP2 7AH,Admin
FOOD STANDARDS AGENCY - Westminster,FOOD STANDARDS AGENCY - Westminster,2021-05-17,EXP - PURCHASE OF GOODS/SERV - SUPPORT - IT SUPPORT SERVICES,FINANCE,SHARED SERVICES CONNECTED LTD,1011716007,212.84,Annual Cost for RFC 35165 Ongoing support for intercompany workaround.  Monthly amount ??207.14,HP2 7AH,Admin
FOOD STANDARDS AGENCY - Westminster,FOOD STANDARDS AGENCY - Westminster,2021-05-17,EXP - PURCHASE OF GOODS/SERV - SUPPORT - IT SUPPORT SERVICES,FINANCE,SHARED SERVICES CONNECTED LTD,1011716007,0.35,Annual costs to cover multi-client changes 2020-21,HP2 7AH,Admin
FOOD STANDARDS AGENCY - Westminster,FOOD STANDARDS AGENCY - Westminster,2021-05-17,EXP - PURCHASE OF GOODS/SERV - SUPPORT - IT SUPPORT SERVICES,FINANCE,SHARED SERVICES CONNECTED LTD,1011716007,0.35,Annual costs to cover multi-client changes 2020-21,HP2 7AH,Admin
FOOD STANDARDS AGENCY - Westminster,FOOD STANDARDS AGENCY - Westminster,2021-05-17,EXP - PURCHASE OF GOODS/SERV - SUPPORT - IT SUPPORT SERVICES,FINANCE,SHARED SERVICES CONNECTED LTD,1011716007,2.75,Annual costs to cover multi-client changes 2020-21,HP2 7AH,Admin
FOOD STANDARDS AGENCY - Westminster,FOOD STANDARDS AGENCY - Westminster,2021-05-17,EXP - PURCHASE OF GOODS/SERV - SUPPORT - IT SUPPORT SERVICES,FINANCE,SHARED SERVICES CONNECTED LTD,1011716007,2.75,Annual costs to cover multi-client changes 2020-21,HP2 7AH,Admin
FOOD STANDARDS AGENCY - Westminster,FOOD STANDARDS AGENCY - Westminster,2021-05-17,EXP - PURCHASE OF GOODS/SERV - SUPPORT - IT SUPPORT SERVICES,FINANCE,SHARED SERVICES CONNECTED LTD,1011716007,17.17,Annual costs to cover multi-client changes 2020-21,HP2 7AH,Admin
FOOD STANDARDS AGENCY - Westminster,FOOD STANDARDS AGENCY - Westminster,2021-05-17,EXP - PURCHASE OF GOODS/SERV - SUPPORT - IT SUPPORT SERVICES,FINANCE,SHARED SERVICES CONNECTED LTD,1011716007,17.17,Annual costs to cover multi-client changes 2020-21,HP2 7AH,Admin
FOOD STANDARDS AGENCY - Westminster,FOOD STANDARDS AGENCY - Westminster,2021-05-17,EXP - PURCHASE OF GOODS/SERV - SUPPORT - IT SUPPORT SERVICES,FINANCE,SHARED SERVICES CONNECTED LTD,1011716007,536.52,Annual costs to cover multi-client changes 2020-21,HP2 7AH,Admin
FOOD STANDARDS AGENCY - Westminster,FOOD STANDARDS AGENCY - Westminster,2021-05-17,EXP - PURCHASE OF GOODS/SERV - SUPPORT - IT SUPPORT SERVICES,FINANCE,SHARED SERVICES CONNECTED LTD,1011716007,1271.75,Annual costs to cover multi-client changes 2020-21,HP2 7AH,Admin
FOOD STANDARDS AGENCY - Westminster,FOOD STANDARDS AGENCY - Westminster,2021-05-17,EXP - PURCHASE OF GOODS/SERV - SUPPORT - IT SUPPORT SERVICES,FINANCE,SHARED SERVICES CONNECTED LTD,1011716007,23368.15,SSCL Core charge management services 21-22,HP2 7AH,Admin
FOOD STANDARDS AGENCY - Westminster,FOOD STANDARDS AGENCY - Westminster,2021-05-17,EXP - PURCHASE OF GOODS/SERV - SUPPORT - IT SUPPORT SERVICES,FINANCE,SHARED SERVICES CONNECTED LTD,1011716007,24969.6,SSCL Core charge management services 21-22,HP2 7AH,Admin
FOOD STANDARDS AGENCY - Westminster,FOOD STANDARDS AGENCY - Westminster,2021-05-05,EXP - PURCHASE OF GOODS/SERVICES - OTHER ICT COSTS - COMPUTER SOFTWARE,NFCU I - Analysis,G B GROUP PLC,1011715895,6900,GBG Connexius IQ,CH4 9GB,Admin
FOOD STANDARDS AGENCY - Westminster,FOOD STANDARDS AGENCY - Westminster,2021-05-05,EXP - PURCHASE OF GOODS/SERVICES - OTHER ICT COSTS - COMPUTER SOFTWARE,NFCU I - Analysis,G B GROUP PLC,1011715895,34500,SOP1-776393-900911-174097-GBG CONNEXIUS IQ,CH4 9GB,Admin
FOOD STANDARDS AGENCY - Westminster,FOOD STANDARDS AGENCY - Westminster,2021-05-12,EXP - PURCHASE OF GOODS/SERVICES - OTHER - PROGRAMME EXPENDITURE,"SCIENCE STRATEGY, CAPABILITY AND RESEARCH",LONDON SCHOOL OF HYGIENE & TROPICAL MEDICINE,1011715948,-93887,LSHTM Research Fellow in Health Economic Modelling,WC1E 7HT,Admin
FOOD STANDARDS AGENCY - Westminster,FOOD STANDARDS AGENCY - Westminster,2021-05-12,EXP - PURCHASE OF GOODS/SERVICES - OTHER - PROGRAMME EXPENDITURE,"SCIENCE STRATEGY, CAPABILITY AND RESEARCH",LONDON SCHOOL OF HYGIENE & TROPICAL MEDICINE,1011715948,38970.35,LSHTM Research Fellow in Health Economic Modelling,WC1E 7HT,Admin
FOOD STANDARDS AGENCY - Westminster,FOOD STANDARDS AGENCY - Westminster,2021-05-12,EXP - PURCHASE OF GOODS/SERVICES - OTHER - PROGRAMME EXPENDITURE,"SCIENCE STRATEGY, CAPABILITY AND RESEARCH",LONDON SCHOOL OF HYGIENE & TROPICAL MEDICINE,1011715948,93887,LSHTM Research Fellow in Health Economic Modelling,WC1E 7HT,Admin
FOOD STANDARDS AGENCY - Westminster,FOOD STANDARDS AGENCY - Westminster,2021-05-12,EXP - PURCHASE OF GOODS/SERVICES - OTHER ICT COSTS - COMPUTER SOFTWARE,IT SERVICE DELIVERY,BYTES SOFTWARE SERVICES LTD,1011715946,31940.28,FSA718 Adobe Licenses under CCS ETLA 2021/22,KT22 7TW,Admin
FOOD STANDARDS AGENCY - Westminster,FOOD STANDARDS AGENCY - Westminster,2021-05-12,EXP - PURCHASE OF GOODS/SERVICES - OTHER ICT COSTS - COMPUTER SOFTWARE,IT SERVICE DELIVERY,BYTES SOFTWARE SERVICES LTD,1011715946,6388.06,UK VAT - UK VAT,KT22 7TW,Admin
FOOD STANDARDS AGENCY - Westminster,FOOD STANDARDS AGENCY - Westminster,2021-05-10,EXP - PURCHASE OF GOODS/SERVICES - OTHER FACILITIES COSTS,REGULATORY & INTERNATIONAL,FOREIGN COMMONWEALTH & DEVELOPMENT OFFICE,2011700045,36928.85,2021-22 Platform Charge,MK10 1PX,Admin
FOOD STANDARDS AGENCY - Westminster,FOOD STANDARDS AGENCY - Westminster,2021-05-17,EXP - PURCHASE OF GOODS/SERVICES - OTHER - CARRIAGE OF SAMPLES,OPERATIONAL DELIVERY,TOPSPEED COURIERS LIMITED,1011716006,1343.8,Topspeed Couriers - Collection of Raw Cows Drinking Milk Samples - Delivery of Official Controls,WA16 8XN,Admin
FOOD STANDARDS AGENCY - Westminster,FOOD STANDARDS AGENCY - Westminster,2021-05-17,EXP - PURCHASE OF GOODS/SERVICES - OTHER - CARRIAGE OF SAMPLES,OPERATIONAL DELIVERY,TOPSPEED COURIERS LIMITED,1011716006,90,Topspeed Couriers - EBL Collections,WA16 8XN,Admin
FOOD STANDARDS AGENCY - Westminster,FOOD STANDARDS AGENCY - Westminster,2021-05-17,EXP - PURCHASE OF GOODS/SERVICES - OTHER - CARRIAGE OF SAMPLES,OPERATIONAL DELIVERY,TOPSPEED COURIERS LIMITED,1011716006,144,Topspeed - DNA ear tags,WA16 8XN,Admin
FOOD STANDARDS AGENCY - Westminster,FOOD STANDARDS AGENCY - Westminster,2021-05-17,EXP - PURCHASE OF GOODS/SERVICES - OTHER - CARRIAGE OF SAMPLES,OPERATIONAL DELIVERY,TOPSPEED COURIERS LIMITED,1011716006,1102.5,Topspeed Couriers - Return of RIM boxes to APHA sites,WA16 8XN,Admin
FOOD STANDARDS AGENCY - Westminster,FOOD STANDARDS AGENCY - Westminster,2021-05-17,EXP - PURCHASE OF GOODS/SERVICES - OTHER - CARRIAGE OF SAMPLES,OPERATIONAL DELIVERY,TOPSPEED COURIERS LIMITED,1011716006,15440,Topspeed Couriers - Collection of RIM samples,WA16 8XN,Admin
FOOD STANDARDS AGENCY - Westminster,FOOD STANDARDS AGENCY - Westminster,2021-05-17,EXP - PURCHASE OF GOODS/SERVICES - OTHER - CARRIAGE OF SAMPLES,OPERATIONAL DELIVERY,TOPSPEED COURIERS LIMITED,1011716006,50,Topspeed - Wine collections,WA16 8XN,Admin
FOOD STANDARDS AGENCY - Westminster,FOOD STANDARDS AGENCY - Westminster,2021-05-17,EXP - PURCHASE OF GOODS/SERVICES - OTHER - CARRIAGE OF SAMPLES,OPERATIONAL DELIVERY,TOPSPEED COURIERS LIMITED,1011716006,5265,Topspeed - Collect and Deliver TB samples to APHA,WA16 8XN,Admin
FOOD STANDARDS AGENCY - Westminster,FOOD STANDARDS AGENCY - Westminster,2021-05-17,EXP - PURCHASE OF GOODS/SERVICES - OTHER - CARRIAGE OF SAMPLES,OPERATIONAL DELIVERY,TOPSPEED COURIERS LIMITED,1011716006,1250,Topspeed Couriers - Pig AMR sample collections,WA16 8XN,Admin
FOOD STANDARDS AGENCY - Westminster,FOOD STANDARDS AGENCY - Westminster,2021-05-04,EXP - SHORT-TERM CONTRACT & AGENCY STAFF - FULL COST,CHIEF EXECUTIVE & PRIVATE OFFICE,DEPARTMENT OF HEALTH,2011700039,28038,DHSC 20-21 Fast Streamer Beatrice Calver,LS2 7UE,Admin
FOOD STANDARDS AGENCY - Westminster,FOOD STANDARDS AGENCY - Westminster,2021-05-07,EXP - PURCHASE OF GOODS/SERVICES - OTHER - PROGRAMME EXPENDITURE,RISK ASSESSMENT - RESEARCH AND DEVELOPMENT,PUBLIC HEALTH ENGLAND,2011700042,22907.82,"Survey of Salmonella, E. coli and E. coli and antimicrobial resistance (AMR) Req Jessica Cairo. FS430677",OX11 0RQ,Admin
FOOD STANDARDS AGENCY - Westminster,FOOD STANDARDS AGENCY - Westminster,2021-05-24,EXP - PURCHASE OF GOODS/SERVICES - OTHER ICT COSTS - COMPUTER SOFTWARE,IT SERVICE DELIVERY,TRUSTMARQUE SOLUTIONS LTD,1011716051,20599.96,Forcepoint licenses (1-May-21 to 30-Apr-22) (BC832),YO32 9GZ,Admin
FOOD STANDARDS AGENCY - Westminster,FOOD STANDARDS AGENCY - Westminster,2021-05-24,EXP - PURCHASE OF GOODS/SERVICES - OTHER ICT COSTS - COMPUTER SOFTWARE,IT SERVICE DELIVERY,TRUSTMARQUE SOLUTIONS LTD,1011716051,4119.99,UK VAT - UK VAT,YO32 9GZ,Admin
FOOD STANDARDS AGENCY - Westminster,FOOD STANDARDS AGENCY - Westminster,2021-05-24,EXP - PURCHASE OF GOODS/SERVICES - OTHER ICT COSTS - COMPUTER SOFTWARE,IT SERVICE DELIVERY,TRUSTMARQUE SOLUTIONS LTD,1011716051,1016.5,JAWS Software License,YO32 9GZ,Admin
FOOD STANDARDS AGENCY - Westminster,FOOD STANDARDS AGENCY - Westminster,2021-05-24,EXP - PURCHASE OF GOODS/SERVICES - OTHER ICT COSTS - COMPUTER SOFTWARE,IT SERVICE DELIVERY,TRUSTMARQUE SOLUTIONS LTD,1011716051,203.3,UK VAT - UK VAT,YO32 9GZ,Admin
FOOD STANDARDS AGENCY - Westminster,FOOD STANDARDS AGENCY - Westminster,2021-05-24,EXP - PURCHASE OF GOODS/SERVICES - OTHER - PROGRAMME EXPENDITURE,SCIENTIFIC METHODS AND LABORATORY POLICY,HAMPSHIRE SCIENTIFIC SERVICE HAMPSHIRE COUNTY COUNCIL,1011716047,16730.4,Covid-19 surveillance sampling programme,SO23 8UB,Admin
FOOD STANDARDS AGENCY - Westminster,FOOD STANDARDS AGENCY - Westminster,2021-05-24,EXP - PURCHASE OF GOODS/SERVICES - OTHER - PROGRAMME EXPENDITURE,SCIENTIFIC METHODS AND LABORATORY POLICY,HAMPSHIRE SCIENTIFIC SERVICE HAMPSHIRE COUNTY COUNCIL,1011716047,4444.6,Covid-19 surveillance sampling programme add a line to PO11770006192,SO23 8UB,Admin
FOOD STANDARDS AGENCY - Westminster,FOOD STANDARDS AGENCY - Westminster,2021-05-17,EXP - PURCHASE OF GOODS/SERVICES - PERSONNEL RELATED - RECRUITMENT ADVERTISING,PEOPLE & ORGANISATIONAL CHANGE,LINKEDIN IRELAND UNLIMITED COMPANY,1011715998,25375,LinkedIn subscription 2021/22,DUBLIN 2,Admin
FOOD STANDARDS AGENCY - Westminster,FOOD STANDARDS AGENCY - Westminster,2021-05-11,EXP - PURCHASE OF GOODS/SERVICES - OTHER - PROGRAMME EXPENDITURE,FOOD HYPERSENSITIVITIES,GLASGOWS LTD,1011715942,138.88,FS430683 new line to PO 11770006632 ,PR25 3UQ,Admin
FOOD STANDARDS AGENCY - Westminster,FOOD STANDARDS AGENCY - Westminster,2021-05-11,EXP - PURCHASE OF GOODS/SERVICES - OTHER - PROGRAMME EXPENDITURE,FOOD HYPERSENSITIVITIES,GLASGOWS LTD,1011715942,1666.5,Further line to PO6632 for Welsh language requirements,PR25 3UQ,Admin
FOOD STANDARDS AGENCY - Westminster,FOOD STANDARDS AGENCY - Westminster,2021-05-11,EXP - PURCHASE OF GOODS/SERVICES - OTHER - PROGRAMME EXPENDITURE,FOOD HYPERSENSITIVITIES,GLASGOWS LTD,1011715942,333.3,UK VAT - UK VAT,PR25 3UQ,Admin
FOOD STANDARDS AGENCY - Westminster,FOOD STANDARDS AGENCY - Westminster,2021-05-11,EXP - PURCHASE OF GOODS/SERVICES - OTHER - PROGRAMME EXPENDITURE,FOOD HYPERSENSITIVITIES,GLASGOWS LTD,1011715942,3837.36,UK VAT - UK VAT,PR25 3UQ,Admin
FOOD STANDARDS AGENCY - Westminster,FOOD STANDARDS AGENCY - Westminster,2021-05-11,EXP - PURCHASE OF GOODS/SERVICES - OTHER - PROGRAMME EXPENDITURE,FOOD HYPERSENSITIVITIES,GLASGOWS LTD,1011715942,19186.84,Virtual Conference Platform & Event Management,PR25 3UQ,Admin
